bitfinex/quotes_ETHUSD_20240902
["timestamp","ask_amount","ask_price","bid_price","bid_amount"]
[1725273204588,0.275948,2536.7,2536.3,2.7599]
[1725273204792,2.75945,2536.8,2536.1,2.76005]
[1725273205314,5.61202887,2536.9,2536.1,2.76005]
[1725273205519,5.61202887,2536.9,2535.8,3.395]
[1725273205520,2.75982,2536.4,2535.8,3.395]
[1725273205676,8.4762,2536.8,2535.8,3.395]
[1725273205677,0.275982,2536.3,2535.9,2.76035]
[1725273205876,8.37171887,2536.6,2535.9,2.76035]
[1725273206077,2.75949,2536.7,2536.1,2.76011]
[1725273207021,2.75961,2536.6,2535.8,3.395]
[1725273207220,2.75981,2536.4,2535.8,6.15546]
[1725273207594,2.75981,2536.4,2535.8,3.395]
[1725273207793,3.311752,2536.4,2535.8,3.395]
[1725273208096,3.311752,2536.4,2535.8,3.0]
[1725273208681,3.311752,2536.4,2535.6,5.76058]
[1725273209032,5.61202887,2536.6,2535.6,5.76058]
[1725273209033,5.51934,2536.6,2535.9,2.76032]
[1725273209382,2.75964,2536.6,2535.9,2.76032]
[1725273209723,2.75971,2536.5,2535.9,2.76028]
[1725273210433,2.75984,2536.4,2535.7,2.76054]
[1725273210732,3.311775,2536.4,2535.8,3.31042]
[1725273211027,6.071685,2536.4,2535.8,3.31042]
[1725273211493,3.311775,2536.4,2535.8,3.31042]
[1725273211685,2.75992,2536.3,2535.8,3.31042]
[1725273212317,3.0911055,2536.3,2535.6,3.0]
[1725273212545,2.75976,2536.5,2535.8,2.76044]
[1725273212839,2.75954,2536.7,2536.0,2.76022]
[1725273213118,2.75954,2536.7,2536.1,2.76013]
[1725273213324,2.75931,2536.9,2536.2,2.75997]
[1725273213483,11.1766,2537.1,2536.5,2.75969]
[1725273213684,8.37088887,2537.3,2536.6,2.75959]
[1725273213685,2.75886,2537.3,2536.6,2.75959]
[1725273213906,3.59594889,2537.3,2536.7,2.75948]
[1725273214118,1.27673489,2537.2,2536.7,2.75948]
[1725273214328,1.27673489,2537.2,2536.5,11.41035]
[1725273214651,1.27673489,2537.2,2536.3,6.15487]
[1725273214930,1.27673489,2537.2,2536.4,2.75981]
[1725273215224,3.72388538,2537.1,2536.5,3.0]
[1725273215439,3.72388538,2537.1,2536.5,2.75963]
[1725273216751,2.75912,2537.1,2536.5,2.75963]
[1725273217257,1.27673489,2537.2,2536.5,2.75963]
[1725273217403,1.27673489,2537.2,2536.6,2.75959]
[1725273217603,1.27673489,2537.2,2536.6,0.55]
[1725273217918,2.75917,2537.0,2536.6,0.55]
[1725273218119,2.75917,2537.0,2536.3,3.15489]
[1725273218120,3.16276049,2537.0,2536.4,3.55]
[1725273218330,3.16276049,2537.0,2536.4,3.0]
[1725273218617,0.40359049,2537.0,2536.3,0.395]
[1725273219007,0.40359049,2537.0,2536.3,3.15485]
[1725273219008,3.16276049,2537.0,2536.3,3.15485]
[1725273219223,3.16276049,2537.0,2536.4,3.0]
[1725273219540,2.75936,2536.9,2536.4,3.0]
[1725273219700,3.16276049,2537.0,2536.3,6.15484]
[1725273219906,4.03570489,2537.2,2536.6,2.75958]
[1725273220204,2.75884,2537.3,2536.6,2.75958]
[1725273220740,2.75884,2537.3,2536.1,11.3324]
[1725273220741,9.0963,2536.9,2535.9,3.15531]
[1725273220898,2.75987,2536.4,2535.9,0.395]
[1725273221104,2.75965,2536.6,2535.9,0.395]
[1725273221302,0.275965,2536.6,2536.1,2.76009]
[1725273221544,3.035585,2536.6,2535.9,3.15535]
[1725273221743,3.035585,2536.6,2535.9,0.395]
[1725273222045,2.7599,2536.4,2535.9,0.395]
[1725273222456,2.75978,2536.5,2535.9,0.395]
[1725273222609,2.75984,2536.4,2535.9,0.395]
[1725273222799,2.75984,2536.4,2535.8,0.395]
[1725273223131,8.7725,2536.4,2535.8,0.395]
[1725273223453,2.7601,2536.2,2535.8,0.395]
[1725273223615,11.53236,2536.4,2535.8,0.395]
[1725273223825,0.3035585,2536.5,2535.9,0.395]
[1725273223826,3.0632785,2536.5,2535.9,0.395]
[1725273224957,2.75982,2536.4,2535.9,0.395]
[1725273225324,0.3035585,2536.5,2535.9,0.395]
[1725273225632,2.76025,2536.0,2535.9,0.395]
[1725273226143,2.76052,2535.8,2535.5,8.6605]
[1725273226353,2.76059,2535.7,2535.3,3.0]
[1725273226535,5.52106,2535.8,2535.4,3.0]
[1725273226924,2.76058,2535.7,2535.2,8.6094]
[1725273227119,2.7607,2535.6,2535.2,8.6094]
[1725273227317,2.7607,2535.6,2534.9,8.6094]
[1725273227318,2.76092,2535.4,2534.9,8.6094]
[1725273227736,2.76073,2535.6,2534.9,11.37076]
[1725273227910,2.76051,2535.8,2535.1,2.76116]
[1725273228116,2.7607,2535.6,2535.1,2.76116]
[1725273228646,5.52063,2536.0,2535.3,2.761]
[1725273228855,2.76038,2535.9,2535.3,2.83987657]
[1725273229207,2.76031,2536.0,2535.4,2.7609]
[1725273229439,6.787716,2536.0,2535.3,2.761]
[1725273229663,4.027386,2536.0,2535.4,3.38975483]
[1725273229848,3.66104,2536.2,2535.5,2.76071]
[1725273230056,3.66104,2536.2,2535.6,0.55]
[1725273230509,3.66104,2536.2,2535.6,3.31062]
[1725273231165,2.76009,2536.2,2535.6,0.55]
[1725273231324,2.76009,2536.2,2535.6,3.38947857]
[1725273231655,2.76009,2536.2,2535.6,0.62886857]
[1725273231855,2.7602,2536.1,2535.6,0.55]
[1725273232015,2.76029,2536.0,2535.6,0.55]
[1725273232221,2.76029,2536.0,2535.5,3.55]
[1725273232770,5.52062,2536.0,2535.5,3.55]
[1725273232949,2.76029,2536.0,2535.5,3.55]
[1725273233765,3.959139,2536.2,2535.5,3.55]
[1725273234260,3.959139,2536.2,2535.6,2.76061]
[1725273234467,3.959139,2536.2,2535.7,0.55]
[1725273234767,11.99027,2536.4,2535.7,0.55]
[1725273234932,2.75963,2536.6,2536.0,2.76016]
[1725273235293,2.75921,2537.0,2536.3,2.75985]
[1725273235733,2.75921,2537.0,2535.9,8.5498]
[1725273235734,2.75957,2536.7,2536.1,3.0]
[1725273236075,14.61432887,2537.2,2536.1,3.0]
[1725273236076,5.51929,2536.6,2536.2,0.55]
[1725273236234,2.75971,2536.5,2536.2,0.55]
[1725273236438,2.75989,2536.4,2535.8,0.395]
[1725273236748,2.76004,2536.2,2535.8,0.395]
[1725273237071,5.61202887,2536.6,2534.6,1.19662854]
[1725273237072,2.76026,2536.0,2535.3,9.7225]
[1725273238018,2.76026,2536.0,2535.4,2.76089]
[1725273238336,3.312295,2536.0,2535.3,9.7225]
[1725273238535,2.76048,2535.8,2535.4,3.0]
[1725273239541,3.312295,2536.0,2535.4,3.0]
[1725273239956,2.76026,2536.0,2535.4,5.76086]
[1725273240263,2.76026,2536.0,2535.5,0.55]
[1725273241450,2.75983,2536.4,2535.6,2.76066]
[1725273241766,2.76004,2536.2,2535.7,0.55]
[1725273242341,5.51972,2536.4,2535.7,0.55]
[1725273242547,9.085,2536.5,2535.7,0.55]
[1725273242548,2.75978,2536.5,2535.8,9.2399]
[1725273242740,2.75964,2536.6,2535.9,0.55]
[1725273242946,3.913134,2536.6,2535.9,0.55]
[1725273243252,2.75982,2536.4,2535.9,0.55]
[1725273243833,2.75978,2536.5,2535.9,0.55]
[1725273244038,3.913134,2536.6,2535.9,0.55]
[1725273244274,2.75982,2536.4,2535.9,0.55]
[1725273244427,2.75923,2537.0,2536.0,0.07885493]
[1725273244626,11.18789,2537.2,2536.0,0.07885493]
[1725273244627,2.75899,2537.2,2536.6,2.75957]
[1725273244839,2.75899,2537.2,2536.6,2.83840741]
[1725273245043,2.75872,2537.4,2536.7,2.75948]
[1725273245376,2.75884,2537.3,2536.7,2.75948]
[1725273245734,2.75917,2537.0,2536.4,0.395]
[1725273245940,2.75917,2537.0,2536.5,0.55]
[1725273246139,2.75896,2537.2,2536.5,6.3097]
[1725273246373,2.75878,2537.4,2536.6,2.75958]
[1725273246696,2.75894,2537.2,2536.5,6.3097]
[1725273246901,0.99193186,2537.4,2536.5,3.55]
[1725273247065,0.99193186,2537.4,2536.4,3.0]
[1725273247066,2.75947,2536.8,2536.4,3.0]
[1725273247427,2.75921,2537.0,2536.3,3.0]
[1725273247687,5.51806,2537.2,2536.5,2.75968]
[1725273247841,4.226606,2537.1,2536.4,0.55]
[1725273248049,2.75916,2537.0,2536.4,0.55]
[1725273248389,2.75901,2537.2,2536.5,2.75969]
[1725273248698,2.75907,2537.1,2536.6,0.55]
[1725273250201,2.75907,2537.1,2536.3,5.75984]
[1725273250202,2.75931,2536.9,2536.3,5.75984]
[1725273250356,2.7594,2536.8,2536.3,3.0]
[1725273250801,2.75923,2537.0,2536.3,3.0]
[1725273251098,2.75935,2536.9,2536.3,5.75983]
[1725273252285,2.75909,2537.1,2536.3,5.75983]
[1725273252475,11.91559,2537.3,2536.5,2.75963]
[1725273252656,2.75895,2537.2,2536.6,0.55]
[1725273252865,2.75906,2537.1,2536.6,0.55]
[1725273253782,1.191559,2537.2,2536.6,0.55]
[1725273253968,2.75889,2537.3,2536.7,9.248]
[1725273254165,2.75889,2537.3,2536.7,12.00748]
[1725273254887,3.310644,2537.3,2536.7,9.248]
[1725273255055,2.75889,2537.3,2536.7,9.248]
[1725273255256,2.7596,2536.6,2536.0,12.00636]
[1725273256499,2.7596,2536.6,2536.0,3.15525]
[1725273256805,17.37312887,2537.0,2536.0,3.15525]
[1725273256806,11.76111,2537.0,2536.3,2.75992]
[1725273256960,1.73731289,2536.9,2536.2,2.76001]
[1725273257297,1.73731289,2536.9,2536.2,2.75996]
[1725273257482,3.034889,2537.2,2536.4,2.75973]
[1725273257804,2.75907,2537.1,2536.5,2.75961]
[1725273257972,2.75919,2537.0,2536.4,2.75973]
[1725273258152,0.275919,2536.9,2536.5,0.55]
[1725273258356,2.75938,2536.8,2536.4,3.0]
[1725273258558,3.3388889,2536.8,2536.0,3.15522]
[1725273258808,2.75975,2536.5,2536.0,0.395]
[1725273259098,2.75954,2536.7,2536.0,6.15517]
[1725273259294,2.7588,2537.4,2536.5,2.75968]
[1725273259510,2.7588,2537.4,2536.6,3.0]
[1725273259667,2.75886,2537.3,2536.7,2.75939]
[1725273259996,2.75886,2537.3,2536.8,3.0]
[1725273260306,3.310626,2537.3,2536.8,3.0]
[1725273260660,2.7588,2537.4,2536.8,3.0]
[1725273262461,2.75852,2537.6,2536.9,2.75926]
[1725273262661,2.75863,2537.5,2536.9,2.75926]
[1725273263895,2.75852,2537.6,2536.9,2.7592]
[1725273264403,3.36256985,2537.6,2536.9,2.7592]
[1725273265195,3.36256985,2537.6,2537.0,2.75914]
[1725273265399,8.7834,2537.9,2536.9,0.07883513]
[1725273265607,8.7834,2537.9,2537.1,1.02383513]
[1725273265810,8.7834,2537.9,2537.5,2.7586]
[1725273265959,9.66174,2537.9,2537.3,2.75879]
[1725273266361,12.41994,2537.9,2537.3,2.75879]
[1725273266592,2.75832,2537.8,2537.1,5.75898]
[1725273266783,4.27613,2537.8,2537.1,5.75898]
[1725273267701,4.27613,2537.8,2537.1,8.51796]
[1725273267883,1.51781,2537.8,2537.2,2.75888]
[1725273268085,8.7834,2537.9,2537.3,5.75883]
[1725273268702,8.7834,2537.9,2537.3,8.51759]
[1725273268921,2.75813,2538.0,2537.4,2.75864]
[1725273269077,2.75813,2538.0,2537.3,5.75876]
[1725273269078,4.166014,2538.0,2537.3,5.75876]
[1725273269279,2.75826,2537.9,2537.3,5.75876]
[1725273272019,4.166014,2538.0,2537.3,8.5175]
[1725273272317,4.166014,2538.0,2537.3,5.75874]
[1725273272674,4.166014,2538.0,2537.3,8.51751]
[1725273272875,4.166014,2538.0,2537.4,2.75871]
[1725273273709,6.924164,2538.0,2537.3,5.75874]
[1725273273913,4.166014,2538.0,2537.3,8.51751]
[1725273274416,4.166014,2538.0,2537.3,8.5175]
[1725273274617,4.166014,2538.0,2537.4,2.75872]
[1725273274977,1.407884,2538.0,2537.5,2.75859]
[1725273275329,11.32071,2538.2,2537.6,2.75851]
[1725273275545,8.5086,2538.5,2537.6,0.07881572]
[1725273275830,4.75635,2539.6,2538.2,2.75776]
[1725273275831,11.26589,2538.8,2538.2,2.75776]
[1725273276124,2.75733,2538.7,2538.0,2.75803]
[1725273276280,2.75754,2538.5,2538.1,3.0]
[1725273276686,2.7575,2538.6,2538.0,8.3742]
[1725273276922,2.75724,2538.8,2538.0,8.3742]
[1725273277084,2.75711,2538.9,2538.2,2.75775]
[1725273277409,6.065943,2538.8,2538.2,2.75775]
[1725273277613,5.51453,2538.8,2538.2,2.75775]
[1725273277814,5.51453,2538.8,2538.1,3.0]
[1725273277815,2.75732,2538.7,2538.1,3.0]
[1725273278337,2.75723,2538.8,2538.1,3.0]
[1725273278482,2.75731,2538.7,2538.1,3.0]
[1725273278683,2.75744,2538.6,2538.1,3.0]
[1725273278883,5.51495,2538.6,2538.1,3.0]
[1725273279113,9.060095,2538.6,2537.8,0.395]
[1725273279335,2.75808,2538.0,2537.3,11.13295]
[1725273279532,2.7582,2537.9,2537.3,11.13295]
[1725273279828,2.75804,2538.1,2537.4,2.75872]
[1725273280030,2.75807,2538.0,2537.3,13.89171]
[1725273280326,2.75807,2538.0,2537.4,0.395]
[1725273280494,2.75804,2538.1,2537.4,0.395]
[1725273280701,2.75804,2538.1,2537.5,2.75855]
[1725273281086,5.5161,2538.1,2537.6,3.0]
[1725273281289,11.17154,2538.1,2537.6,3.0]
[1725273281629,11.17154,2538.1,2537.4,3.395]
[1725273281630,2.75809,2538.0,2537.4,3.395]
[1725273281785,11.17154,2538.1,2537.4,3.395]
[1725273281986,11.17154,2538.1,2537.4,6.15372]
[1725273282517,2.75812,2538.0,2537.4,3.395]
[1725273283133,11.17154,2538.1,2537.5,2.7586]
[1725273283510,11.17154,2538.1,2537.6,3.0]
[1725273283709,2.75779,2538.3,2537.6,3.0]
[1725273283913,2.75779,2538.3,2537.6,5.75849]
[1725273284115,2.75789,2538.2,2537.6,5.75849]
[1725273284299,2.75789,2538.2,2537.6,3.0]
[1725273285539,2.75797,2538.1,2537.6,3.0]
[1725273286236,3.879879,2538.3,2537.6,3.0]
[1725273286644,2.75794,2538.2,2537.6,3.0]
[1725273287543,2.75779,2538.3,2537.7,2.75839]
[1725273287749,2.75779,2538.3,2537.7,2.75833]
[1725273288052,5.51519,2538.5,2537.9,2.75818]
[1725273288255,2.75758,2538.5,2537.9,2.75818]
[1725273288542,2.75758,2538.5,2537.9,2.75812]
[1725273288695,2.75734,2538.7,2538.0,2.75801]
[1725273288899,2.75734,2538.7,2538.1,2.75792]
[1725273289644,2.75734,2538.7,2538.1,2.75789]
[1725273289826,5.51474,2538.7,2538.1,2.75789]
[1725273290008,2.75743,2538.6,2537.9,3.15311]
[1725273290202,2.75743,2538.6,2538.0,3.55]
[1725273291566,2.75765,2538.4,2538.0,3.55]
[1725273291695,2.75765,2538.4,2537.7,3.0]
[1725273291903,2.75765,2538.4,2537.5,11.9441]
[1725273291904,2.75765,2538.4,2537.6,3.0]
[1725273292099,2.75765,2538.4,2537.7,0.55]
[1725273292511,2.75786,2538.2,2537.7,0.55]
[1725273293100,2.75797,2538.1,2537.7,0.55]
[1725273293398,2.75807,2538.0,2537.6,3.0]
[1725273293598,2.75807,2538.0,2537.4,3.395]
[1725273293854,2.75807,2538.0,2537.4,6.15369]
[1725273294334,2.75826,2537.9,2537.4,3.395]
[1725273294539,2.75807,2538.0,2537.4,3.395]
[1725273294540,2.75836,2537.8,2537.4,0.395]
[1725273294837,2.75841,2537.7,2537.4,0.395]
[1725273295054,0.275807,2537.9,2536.8,11.99387]
[1725273295404,2.75873,2537.4,2536.8,11.99387]
[1725273296302,2.75873,2537.4,2536.9,3.0]
[1725273296530,2.75851,2537.6,2536.9,8.51844]
[1725273296693,2.75851,2537.6,2536.9,5.75918]
[1725273296694,5.51711,2537.6,2536.9,5.75918]
[1725273296895,2.75851,2537.6,2536.9,5.75918]
[1725273297937,2.75869,2537.5,2536.9,5.75918]
[1725273298827,2.75851,2537.6,2536.9,5.75918]
[1725273299005,5.51711,2537.6,2536.9,5.75918]
[1725273299339,2.75865,2537.5,2536.9,5.75918]
[1725273299544,2.75874,2537.4,2536.9,3.0]
[1725273300250,2.75874,2537.4,2536.5,11.46564]
[1725273300251,2.75898,2537.2,2536.5,11.46564]
[1725273300554,2.75898,2537.2,2536.5,11.86064]
[1725273300698,2.75898,2537.2,2536.6,2.75959]
[1725273300897,2.75877,2537.4,2536.7,3.15447]
[1725273301097,2.75852,2537.6,2536.9,11.22216]
[1725273301644,2.75852,2537.6,2536.9,11.22209]
[1725273301811,5.51712,2537.6,2536.9,11.22209]
[1725273302231,2.75863,2537.5,2536.9,11.22209]
[1725273302430,2.75874,2537.4,2536.9,11.22209]
[1725273302798,6.43727843,2537.6,2536.9,11.22209]
[1725273303003,3.67868843,2537.6,2536.9,11.22209]
[1725273303199,3.67868843,2537.6,2536.9,2.75919]
[1725273303443,6.43727843,2537.6,2536.9,2.75919]
[1725273303651,11.43136,2537.8,2536.7,3.395]
[1725273303803,8.673,2537.8,2537.1,3.15397]
[1725273304131,11.43132,2537.8,2537.2,3.0]
[1725273304306,2.75822,2537.9,2537.3,2.75881]
[1725273305150,2.75829,2537.8,2537.2,3.0]
[1725273305927,2.75829,2537.8,2537.2,5.75889]
[1725273307163,4.20073822,2538.5,2537.4,8.6285]
[1725273307472,8.637,2538.4,2537.5,3.0]
[1725273307770,2.75807,2538.1,2537.3,2.75882]
[1725273307958,2.75807,2538.1,2537.4,5.75872]
[1725273308162,2.75779,2538.3,2537.7,2.75838]
[1725273308480,8.637,2538.4,2537.8,2.7582]
[1725273308662,11.65055,2538.7,2538.0,2.75804]
[1725273309030,11.65055,2538.7,2538.1,2.75795]
[1725273309227,2.75735,2538.7,2538.0,2.75804]
[1725273309464,2.75754,2538.5,2537.8,5.75821]
[1725273309675,11.38864,2538.5,2537.9,3.0]
[1725273309870,2.75765,2538.4,2537.9,3.0]
[1725273310228,14.14626,2538.5,2537.9,3.0]
[1725273310430,10.045726,2538.5,2537.9,3.0]
[1725273310630,2.75788,2538.2,2537.7,3.0]
[1725273311170,2.75785,2538.3,2537.7,3.0]
[1725273311336,2.7579,2538.2,2537.7,3.0]
[1725273312034,2.7579,2538.2,2537.4,3.1537]
[1725273312035,2.75797,2538.1,2537.4,3.1537]
[1725273312236,2.7582,2537.9,2537.5,3.0]
[1725273312566,2.7582,2537.9,2537.4,3.0]
[1725273312769,2.7582,2537.9,2537.3,3.0]
[1725273313756,2.75836,2537.8,2537.3,3.0]
[1725273313939,2.7582,2537.9,2537.3,3.0]
[1725273314369,4.2055097,2537.9,2537.3,3.0]
[1725273314669,6.9637697,2537.9,2537.3,3.0]
[1725273314896,4.2055097,2537.9,2537.3,3.0]
[1725273316366,2.75841,2537.7,2537.3,3.0]
[1725273316532,2.75841,2537.7,2537.1,6.15403]
[1725273316873,2.75841,2537.7,2537.1,3.395]
[1725273317303,2.75841,2537.7,2537.1,6.15404]
[1725273317575,11.714967,2538.0,2537.4,2.75867]
[1725273317779,4.2054877,2537.9,2537.2,0.55]
[1725273317948,2.75834,2537.8,2537.1,6.15399]
[1725273318287,2.7584,2537.7,2537.1,3.395]
[1725273318629,2.7584,2537.7,2537.1,6.15401]
[1725273318829,1.31623847,2537.8,2537.1,6.15401]
[1725273319071,8.956897,2538.0,2537.3,2.75875]
[1725273319245,11.715047,2538.0,2537.3,2.75875]
[1725273319441,2.75819,2537.9,2537.3,2.75875]
[1725273319676,2.75819,2537.9,2537.3,5.51752]
[1725273321158,2.75819,2537.9,2537.4,2.75872]
[1725273321652,2.75819,2537.9,2537.3,5.51751]
[1725273321860,8.956897,2538.0,2537.4,2.75869]
[1725273322084,11.715037,2538.0,2537.4,2.75869]
[1725273322508,2.75846,2537.7,2537.1,6.15397]
[1725273322659,2.75846,2537.7,2537.1,8.91296]
[1725273322860,3.9297437,2537.9,2537.3,2.75882]
[1725273323404,2.75831,2537.8,2537.3,2.75882]
[1725273324170,2.75831,2537.8,2537.1,6.15396]
[1725273324379,0.60117971,2537.7,2537.1,6.15396]
[1725273324657,0.60117971,2537.7,2537.2,2.75891]
[1725273324855,3.35958971,2537.7,2537.1,8.91295]
[1725273325111,2.75873,2537.4,2536.8,5.75931]
[1725273325310,8.5252,2537.5,2536.7,2.75947]
[1725273325311,2.7589,2537.3,2536.7,2.75947]
[1725273325473,1.404277,2537.3,2536.8,2.75936]
[1725273325810,11.28387,2537.5,2536.8,2.75936]
[1725273325990,2.7589,2537.3,2536.6,2.75951]
[1725273326197,2.7589,2537.3,2536.6,5.51904]
[1725273326361,2.7589,2537.3,2536.7,2.75949]
[1725273326973,11.28387,2537.5,2536.9,2.75919]
[1725273327409,13.20188669,2537.5,2536.9,2.75919]
[1725273327700,4.20073822,2537.6,2537.0,2.75915]
[1725273328873,4.20073822,2537.6,2537.1,2.75899]
[1725273329072,3.35959971,2537.7,2537.1,2.75899]
[1725273329594,3.35959971,2537.7,2537.2,2.75893]
[1725273329595,0.60117971,2537.7,2537.2,2.75893]
[1725273329803,9.0927,2537.8,2537.2,2.75893]
[1725273330208,11.851,2537.8,2537.2,2.75893]
[1725273331677,11.851,2537.8,2536.9,3.0]
[1725273331678,2.7587,2537.5,2536.9,3.0]
[1725273331914,4.20073822,2537.6,2536.6,3.95616854]
[1725273331915,2.75886,2537.3,2536.6,3.12264621]
[1725273332119,8.7397,2537.2,2536.5,0.395]
[1725273332464,4.20073822,2537.0,2536.3,0.36311621]
[1725273332666,11.7094,2536.5,2536.0,0.36252124]
[1725273332881,11.7094,2536.5,2535.8,2.76038]
[1725273333076,11.7094,2536.5,2535.6,12.38698022]
[1725273333306,5.52001,2536.3,2535.6,12.02431]
[1725273333515,0.97207482,2536.2,2535.5,0.395]
[1725273333800,2.75997,2536.3,2535.5,2.76077]
[1725273334003,4.20073822,2536.4,2535.7,2.76057]
[1725273334187,4.20073822,2536.4,2535.5,2.76076]
[1725273334188,2.76011,2536.2,2535.5,2.76076]
[1725273334400,2.76011,2536.2,2535.3,14.67401898]
[1725273334401,2.76026,2536.0,2535.3,14.67401898]
[1725273334711,2.76026,2536.0,2535.4,2.76089]
[1725273335285,2.76026,2536.0,2535.0,0.36282546]
[1725273335286,2.76091,2535.4,2535.0,0.36282546]
[1725273335482,3.45718482,2535.3,2535.0,0.36282546]
[1725273335665,2.76116,2535.2,2535.0,0.36282546]
[1725273335863,2.76091,2535.4,2535.0,0.36282546]
[1725273336271,4.20073822,2535.5,2535.0,0.36282546]
[1725273336824,11.89421,2535.7,2535.1,2.76121]
[1725273336970,11.89421,2535.7,2535.0,0.36282546]
[1725273337164,6.96153822,2535.5,2535.0,0.36282546]
[1725273337391,2.76093,2535.4,2535.0,0.36282546]
[1725273337601,4.20073822,2535.5,2535.0,3.12406546]
[1725273337904,4.20073822,2535.5,2535.0,0.36282546]
[1725273338267,4.20073822,2535.5,2535.1,2.76113]
[1725273338470,4.20073822,2535.5,2535.1,2.76117]
[1725273339285,4.20073822,2535.8,2535.3,2.76097]
[1725273340007,4.20073822,2535.8,2535.1,11.65917]
[1725273340167,5.76960904,2535.8,2535.1,2.76117]
[1725273340569,8.53009904,2535.8,2535.1,2.76117]
[1725273341070,5.76960904,2535.8,2535.1,2.76117]
[1725273341270,4.20073822,2535.8,2535.1,2.76117]
[1725273341473,4.20073822,2535.8,2535.1,2.76115]
[1725273341671,4.20073822,2535.8,2535.3,2.76092]
[1725273341865,4.20073822,2535.8,2535.3,11.59632]
[1725273342511,4.20073822,2535.8,2535.5,2.76078]
[1725273342814,8.8145,2536.0,2535.5,5.52149]
[1725273343120,8.8145,2536.0,2535.6,2.76067]
[1725273343290,8.8145,2536.0,2535.5,2.76071]
[1725273343494,8.8145,2536.0,2535.3,11.59638]
[1725273343495,2.76036,2535.9,2535.3,2.76093]
[1725273343668,4.20073822,2535.8,2535.1,2.76118]
[1725273343871,6.96127822,2535.8,2535.1,2.76118]
[1725273344075,8.98092202,2535.8,2535.1,2.76118]
[1725273344315,8.98092202,2535.8,2535.1,2.76116]
[1725273344316,8.8355,2535.7,2535.1,2.76116]
[1725273344609,8.8355,2535.7,2535.0,0.36282546]
[1725273344821,8.8355,2535.7,2534.9,5.7614]
[1725273345018,8.8355,2535.7,2535.2,2.76112]
[1725273345314,13.40931887,2535.7,2535.0,3.31128]
[1725273345495,13.40931887,2535.7,2534.9,5.7614]
[1725273345496,4.20073822,2535.5,2534.9,5.7614]
[1725273345702,5.96174393,2535.5,2534.9,5.76137]
[1725273345892,4.20073822,2535.5,2534.9,5.76137]
[1725273346072,4.20073822,2535.5,2535.0,2.76132]
[1725273346418,4.20073822,2535.5,2534.9,3.0]
[1725273346600,6.96162822,2535.5,2534.9,2.76136]
[1725273346914,8.81739904,2535.5,2534.9,2.76136]
[1725273347507,8.81738904,2535.5,2534.8,3.0]
[1725273347872,8.81738904,2535.5,2534.9,2.76137]
[1725273348728,8.81738904,2535.5,2534.2,2.76219]
[1725273348729,8.8597,2535.1,2534.2,2.76219]
[1725273349019,8.8597,2535.1,2534.2,5.52431]
[1725273349020,6.96224822,2534.9,2534.2,5.52431]
[1725273349180,11.62093,2535.1,2534.4,2.76192]
[1725273349378,12.783023,2535.1,2534.4,2.76192]
[1725273349805,12.783023,2535.1,2534.4,2.76191]
[1725273350010,8.8597,2535.1,2534.6,2.7617]
[1725273350392,2.76109,2535.3,2534.6,2.76169]
[1725273350922,5.52219,2535.3,2534.6,2.76169]
[1725273351398,9.2286,2535.4,2534.5,3.55]
[1725273351399,6.96189822,2535.2,2534.5,3.55]
[1725273351741,4.20073822,2534.9,2534.5,3.0]
[1725273351878,8.6754,2534.7,2533.9,2.7625]
[1725273352075,12.87613822,2534.6,2533.9,2.76245]
[1725273352311,12.87613822,2534.6,2534.0,2.84126122]
[1725273352611,12.87613822,2534.6,2534.0,2.76234]
[1725273352612,17.27133552,2534.6,2534.0,2.76234]
[1725273353327,2.76172,2534.7,2534.1,2.76222]
[1725273353610,2.76157,2534.8,2534.2,2.7621]
[1725273353775,15.61341822,2534.9,2534.2,2.7621]
[1725273353971,15.61341822,2534.9,2534.3,2.76207]
[1725273354174,17.45088504,2534.9,2534.3,2.76203]
[1725273354379,17.45088504,2534.9,2534.3,2.76202]
[1725273354603,17.45088504,2534.9,2534.1,14.6092]
[1725273354818,2.76157,2534.8,2534.2,3.31219]
[1725273355016,2.76157,2534.8,2534.1,2.76223]
[1725273355017,2.76177,2534.7,2534.1,2.76223]
[1725273355323,2.76177,2534.6,2534.1,2.76223]
[1725273355489,3.48861285,2534.6,2534.1,2.76223]
[1725273356083,0.72684285,2534.6,2534.1,2.76223]
[1725273356632,3.48868285,2534.6,2533.9,2.76252]
[1725273356926,7.68942107,2534.6,2533.9,2.76246]
[1725273357074,0.34886829,2534.5,2533.9,2.76246]
[1725273357278,3.11076829,2534.5,2533.9,2.76246]
[1725273357475,8.5569,2534.4,2533.9,2.76246]
[1725273358412,11.31889,2534.4,2533.7,6.15767]
[1725273358624,1.16677583,2534.3,2533.8,3.0]
[1725273358851,1.16677583,2534.3,2533.7,2.76267]
[1725273359029,2.76239,2534.1,2533.5,2.76292]
[1725273359247,5.4493048,2534.2,2533.5,2.76292]
[1725273359549,15.97957822,2533.9,2533.1,2.889907]
[1725273359712,15.97957822,2533.9,2533.2,2.76326]
[1725273360227,9.1497,2534.2,2533.3,0.07894289]
[1725273360431,9.1497,2534.2,2533.5,2.76288]
[1725273360755,9.1497,2534.2,2533.8,2.76262]
[1725273360941,4.20073822,2534.4,2533.9,2.76253]
[1725273361744,4.20073822,2534.7,2533.9,2.76253]
[1725273361948,7.51481122,2534.7,2533.9,2.76253]
[1725273362358,7.51481122,2534.7,2534.0,2.76242]
[1725273362651,4.75305122,2534.7,2534.0,2.76242]